fUSD/lending_fUSD_20250807
["ID","MTS","AMOUNT","RATE_DAILY","PERIOD"]
[377813372,1754563841894,-477.97,0.00019988,2]
[377813374,1754563841903,-936.81,0.00019988,2]
[377813376,1754563841914,-400.0,0.00019988,2]
[377813378,1754563841923,-971.09,0.00019988,2]
[377813380,1754563841933,-1869.8,0.00019988,2]
[377813382,1754563841944,-400.0,0.00019988,2]
[377813384,1754563841953,-400.0,0.00019988,2]
[377813386,1754563841963,-400.0,0.00019988,2]
[377813389,1754563841972,-401.5980695,0.00019988,2]
[377813390,1754563841982,-811.54,0.00019988,2]
[377813392,1754563841992,-370.6451168,0.00019988,2]
[377813406,1754563842116,-400.0,0.00019988,2]
[377813408,1754563842130,-1627.89,0.00019988,2]
[377813410,1754563842139,-1762.18,0.00019988,2]
[377813412,1754563842149,-401.15,0.00019988,2]
[377813414,1754563842158,-400.0,0.00019988,2]
[377813416,1754563842167,-632.22,0.00019988,2]
[377813418,1754563842176,-400.0,0.00019988,2]
[377813420,1754563842186,-400.0,0.00019988,2]
[377813422,1754563842197,-3025.82,0.00019988,2]
[377813424,1754563842206,-400.0,0.00019988,2]
[377813426,1754563842218,-250.0,0.00019988,2]
[377813428,1754563842227,-400.0,0.00019988,2]
[377813430,1754563842237,-400.0,0.00019988,2]
[377813432,1754563842247,-2274.01,0.00019988,2]
[377813434,1754563842256,-400.0,0.00019988,2]
[377813436,1754563842266,-400.0,0.00019988,2]
[377813438,1754563842280,-400.0,0.00019988,2]
[377813440,1754563842290,-400.0,0.00019988,2]
[377813442,1754563842299,-400.0,0.00019988,2]
[377813444,1754563842309,-400.0,0.00019988,2]
[377813446,1754563842318,-1821.44,0.00019988,2]
[377813448,1754563842327,-793.21,0.00019988,2]
[377813450,1754563842336,-562.84916815,0.00019988,2]
[377813676,1754563844497,-400.0,0.00019987,2]
[377813678,1754563844506,-402.44298661,0.00019987,2]
[377813680,1754563844515,-1024.49513204,0.00019988,2]
[377813861,1754563846375,-801.60569981,0.00019988,2]
[377813863,1754563846385,-358.68430019,0.00019988,2]
[377813867,1754563846412,-245.26569981,0.00019988,2]
[377813870,1754563846421,-1194.78,0.00019988,2]
[377813873,1754563846431,-400.0,0.00019988,2]
[377813875,1754563846440,-400.0,0.00019988,2]
[377813877,1754563846451,-1805.16,0.00019988,2]
[377813879,1754563846461,-400.0,0.00019988,2]
[377813881,1754563846471,-874.64,0.00019988,2]
[377813883,1754563846480,-517.39915019,0.00019988,2]
[377813885,1754563846492,-256.56084981,0.00019988,2]
[377813887,1754563846502,-400.0,0.00019988,2]
[377813889,1754563846511,-400.0,0.00019988,2]
[377813891,1754563846521,-400.0,0.00019988,2]
[377813893,1754563846531,-406.04,0.00019988,2]
[377813895,1754563846541,-50.85988569,0.00019988,2]
[377813898,1754563846557,-509.06919911,0.00019988,2]
[377813904,1754563846610,-1175.2409152,0.00019988,2]
[377813906,1754563846619,-518.06,0.00019988,2]
[377813908,1754563846628,-400.0,0.00019988,2]
[377813910,1754563846638,-1693.53767924,0.00019988,2]
[377813913,1754563846650,-261.63464925,0.00019988,2]
[377813916,1754563846668,-1215.44767151,0.00019988,2]
[377813918,1754563846682,-1474.07,0.00019988,2]
[377813920,1754563846698,-1563.3,0.00019988,2]
[377813922,1754563846709,-956.6,0.00019988,2]
[377813924,1754563846718,-822.98,0.00019988,2]
[377813926,1754563846728,-400.0,0.00019988,2]
[377813928,1754563846738,-740.72,0.00019988,2]
[377813930,1754563846748,-3249.49,0.00019988,2]
[377813932,1754563846758,-1078.03,0.00019988,2]
[377813934,1754563846767,-1391.38,0.00019988,2]
[377813936,1754563846777,-400.0,0.00019988,2]
[377813938,1754563846787,-1489.7,0.00019988,2]
[377813940,1754563846797,-1276.18,0.00019988,2]
[377813942,1754563846807,-400.0,0.00019988,2]
[377813944,1754563846818,-761.6,0.00019988,2]
[377813946,1754563846828,-400.0,0.00019988,2]
[377813948,1754563846838,-745.77,0.00019988,2]
[377813950,1754563846847,-400.0,0.00019988,2]
[377813952,1754563846857,-2237.93,0.00019988,2]
[377813954,1754563846867,-688.84,0.00019988,2]
[377813956,1754563846877,-400.0,0.00019988,2]
[377813958,1754563846887,-400.0,0.00019988,2]
[377813960,1754563846897,-1853.24,0.00019988,2]
[377813962,1754563846907,-400.0,0.00019988,2]
[377813964,1754563846917,-535.76,0.00019988,2]
[377814008,1754563847321,-426.02,0.00019988,2]
[377814010,1754563847333,-400.0,0.00019988,2]
[377814012,1754563847342,-2216.57,0.00019988,2]
[377814014,1754563847351,-1769.54,0.00019988,2]
[377814016,1754563847361,-400.0,0.00019988,2]
[377814018,1754563847371,-1517.54,0.00019988,2]
[377814020,1754563847380,-729.18,0.00019988,2]
[377814022,1754563847390,-400.0,0.00019988,2]
[377814025,1754563847400,-1296.33,0.00019988,2]
[377814027,1754563847409,-400.0,0.00019988,2]
[377814029,1754563847420,-488.89,0.00019988,2]
[377814031,1754563847431,-400.0,0.00019988,2]
[377814033,1754563847441,-400.0,0.00019988,2]
[377814035,1754563847450,-400.0,0.00019988,2]
[377814037,1754563847460,-766.81,0.00019988,2]
[377814039,1754563847469,-1043.62,0.00019988,2]
[377814041,1754563847479,-400.0,0.00019988,2]
[377814043,1754563847488,-2266.15,0.00019988,2]
[377814045,1754563847497,-2114.27,0.00019988,2]
[377814047,1754563847508,-400.0,0.00019988,2]
[377814049,1754563847518,-400.0,0.00019988,2]
[377814051,1754563847527,-1202.23,0.00019988,2]
[377814053,1754563847537,-400.0,0.00019988,2]
[377814055,1754563847547,-1891.21,0.00019988,2]
[377814057,1754563847557,-400.0,0.00019988,2]
[377814059,1754563847567,-1705.04,0.00019988,2]
[377814061,1754563847577,-400.0,0.00019988,2]
[377814063,1754563847587,-405.65,0.00019988,2]
[377814065,1754563847597,-400.0,0.00019988,2]
[377814066,1754563847614,-1022.58,0.00019988,2]
[377814069,1754563847627,-400.13,0.00019988,2]
[377814070,1754563847637,-510.53,0.00019988,2]
[377814072,1754563847646,-130.11237798,0.00019988,2]
[377814080,1754563847707,-672.62762202,0.00019988,2]
[377814082,1754563847717,-415.23,0.00019988,2]
[377814084,1754563847727,-599.41,0.00019988,2]
[377814086,1754563847737,-2887.96,0.00019988,2]
[377814088,1754563847747,-400.0,0.00019988,2]
[377814090,1754563847756,-867.13,0.00019988,2]
[377814092,1754563847765,-2011.79,0.00019988,2]
[377814094,1754563847775,-400.0,0.00019988,2]
[377814096,1754563847785,-1585.45,0.00019988,2]
[377814098,1754563847794,-842.0,0.00019988,2]
[377814100,1754563847803,-842.0,0.00019988,2]
[377814102,1754563847813,-333.92260121,0.00019988,2]
[377814104,1754563847822,-491.9,0.00019988,2]
[377814106,1754563847832,-400.0,0.00019988,2]
[377814108,1754563847841,-1832.82,0.00019988,2]
[377814110,1754563847852,-400.0,0.00019988,2]
[377814112,1754563847861,-400.0,0.00019988,2]
[377814114,1754563847871,-834.96,0.00019988,2]
[377814116,1754563847881,-877.58,0.00019988,2]
[377814118,1754563847891,-400.0,0.00019988,2]
[377814120,1754563847900,-400.0,0.00019988,2]
[377814122,1754563847911,-417.64,0.00019988,2]
[377814124,1754563847920,-2936.66,0.00019988,2]
[377814126,1754563847930,-790.33,0.00019988,2]
[377814128,1754563847939,-400.0,0.00019988,2]
[377814130,1754563847950,-400.0,0.00019988,2]
[377814132,1754563847959,-11555.95,0.00019988,2]
[377814134,1754563847969,-400.0,0.00019988,2]
[377814136,1754563847979,-548.64,0.00019988,2]
[377814138,1754563847989,-1749.77,0.00019988,2]
[377814140,1754563847999,-400.0,0.00019988,2]
[377814142,1754563848009,-400.0,0.00019988,2]
[377814144,1754563848021,-400.0,0.00019988,2]
[377814147,1754563848031,-400.0,0.00019988,2]
[377814148,1754563848040,-400.0,0.00019988,2]
[377814150,1754563848049,-4487.77,0.00019988,2]
[377814152,1754563848059,-441.87,0.00019988,2]
[377814155,1754563848069,-3020.11,0.00019988,2]
[377814157,1754563848078,-400.0,0.00019988,2]
[377814159,1754563848087,-400.0,0.00019988,2]
[377814161,1754563848097,-1071.78,0.00019988,2]
[377814163,1754563848107,-319.20546205,0.00019988,2]
[377814164,1754563848116,-1792.91,0.00019988,2]
[377814166,1754563848131,-400.0,0.00019988,2]
[377814168,1754563848140,-846.53,0.00019988,2]
[377814170,1754563848150,-1168.88,0.00019988,2]
[377814173,1754563848160,-1168.88,0.00019988,2]
[377814175,1754563848170,-400.0,0.00019988,2]
[377814177,1754563848180,-400.0,0.00019988,2]
[377814179,1754563848194,-1187.15,0.00019988,2]
[377814181,1754563848205,-400.0,0.00019988,2]
[377814183,1754563848215,-400.0,0.00019988,2]
[377814185,1754563848225,-1807.16,0.00019988,2]
[377814187,1754563848234,-4924.56,0.00019988,2]
[377814189,1754563848244,-400.0,0.00019988,2]
[377814191,1754563848253,-508.72740044,0.00019988,2]
[377814193,1754563848263,-938.95,0.00019988,2]
[377814195,1754563848273,-1831.88,0.00019988,2]
[377814197,1754563848285,-2016.3,0.00019988,2]
[377814199,1754563848295,-1641.5,0.00019988,2]
[377814201,1754563848304,-400.0,0.00019988,2]
[377814203,1754563848315,-400.0,0.00019988,2]
[377814205,1754563848325,-400.0,0.00019988,2]
[377814208,1754563848335,-1809.49,0.00019988,2]
[377814210,1754563848345,-1809.49,0.00019988,2]
[377814212,1754563848354,-400.0,0.00019988,2]
[377814214,1754563848364,-477.46,0.00019988,2]
[377814216,1754563848373,-400.0,0.00019988,2]
[377814218,1754563848383,-2205.58,0.00019988,2]
[377814219,1754563848393,-826.08,0.00019988,2]
[377814221,1754563848402,-400.0,0.00019988,2]
[377814223,1754563848412,-400.0,0.00019988,2]
[377814226,1754563848421,-400.0,0.00019988,2]
[377814227,1754563848430,-767.63,0.00019988,2]
[377814230,1754563848441,-1084.24,0.00019988,2]
[377814232,1754563848451,-471.58,0.00019988,2]
[377814234,1754563848461,-400.0,0.00019988,2]
[377814236,1754563848470,-815.85,0.00019988,2]
[377814238,1754563848480,-854.47,0.00019988,2]
[377814240,1754563848490,-400.0,0.00019988,2]
[377814242,1754563848500,-400.0,0.00019989,2]
[377814244,1754563848510,-400.0,0.00019989,2]
[377814246,1754563848519,-400.0,0.00019989,2]
[377814248,1754563848529,-400.0,0.00019989,2]
[377814250,1754563848539,-400.0,0.00019989,2]
[377814252,1754563848549,-432.93587261,0.00019989,2]
[377814253,1754563848559,-400.0,0.00019989,2]
[377814254,1754563848568,-400.0,0.00019989,2]
[377814255,1754563848577,-400.0,0.00019989,2]
[377814256,1754563848586,-400.0,0.00019989,2]
[377814257,1754563848595,-356.42680611,0.00019989,2]
[377814258,1754563848605,-400.0,0.00019989,2]
[377814259,1754563848614,-400.0,0.00019989,2]
[377814260,1754563848623,-400.0,0.00019989,2]
[377814261,1754563848633,-400.0,0.00019989,2]
[377814262,1754563848642,-400.0,0.00019989,2]
[377814263,1754563848651,-400.0,0.00019989,2]
[377814264,1754563848660,-400.0,0.00019989,2]
[377814266,1754563848669,-400.0,0.00019989,2]
[377814268,1754563848678,-419.11,0.00019989,2]
[377814270,1754563848688,-288.16174087,0.00019989,2]
[377814279,1754563848766,-1096.05825913,0.00019989,2]
[377814281,1754563848776,-400.0,0.00019989,2]
[377814283,1754563848785,-535.51,0.00019989,2]
[377814285,1754563848795,-1619.16,0.00019989,2]
[377814287,1754563848805,-400.0,0.00019989,2]
[377814289,1754563848814,-400.0,0.00019989,2]
[377814291,1754563848824,-761.51,0.00019989,2]
[377814293,1754563848833,-400.0,0.00019989,2]
[377814295,1754563848842,-400.0,0.00019989,2]
[377814297,1754563848852,-131.56174087,0.00019989,2]
[377814299,1754563848864,-270.8596639,0.00019989,2]
[377814301,1754563848873,-400.0,0.00019989,2]
[377814303,1754563848883,-1055.72,0.00019989,2]
[377814305,1754563848892,-786.51,0.00019989,2]
[377814307,1754563848903,-400.0,0.00019989,2]
[377814309,1754563848912,-400.0,0.00019989,2]
[377814311,1754563848921,-400.0,0.00019989,2]
[377814313,1754563848931,-1123.61,0.00019989,2]
[377814315,1754563848940,-400.0,0.00019989,2]
[377814317,1754563848949,-632.27996622,0.00019989,2]
[377814465,1754563852720,177.15,0.00014695,2]
[377814469,1754563926471,5000.0,0.00019,3]
[377814471,1754563941662,5000.0,0.00019,3]
[377814473,1754563951187,178.0,0.00028532,120]
[377814474,1754563952364,5000.0,0.00019,3]
[377814478,1754563963030,5000.0,0.00019,3]
[377814479,1754563974524,679.01,0.00015068,2]
[377814480,1754563974750,679.01,0.00016718,2]
[377814481,1754563975553,5000.0,0.00019,3]
[377814482,1754563978379,152.0,0.00018731,3]
[377814486,1754563990420,5000.0,0.00019,3]
[377814488,1754564029334,250.0,0.00015,2]
[377814490,1754564045499,5000.0,0.00019,3]
[377814492,1754564061255,5000.0,0.00019,3]
[377814493,1754564072064,5000.0,0.00019,3]
[377814494,1754564101444,2772.47959979,0.00019,3]
[377814509,1754564428922,500.0,0.00018,10]
[377814516,1754564523074,-679.01,0.00018368,2]
[377814517,1754564523099,-2300.97981744,0.00018576,2]
[377814518,1754564523123,-666.0,0.00018607,3]
[377814519,1754564523146,-310.16,0.00018676,2]
[377814520,1754564523170,-240.79,0.00018727,2]
[377814521,1754564523194,-527.0,0.00018742,2]
[377814522,1754564523217,-152.08169289,0.00018815,2]
[377814523,1754564523240,-1293.83,0.00018834,2]
[377814524,1754564523264,-174.94,0.00018915,2]
[377814525,1754564523289,-541.11,0.00018926,2]
[377814526,1754564523313,-174.94,0.0001901,2]
[377814527,1754564523341,-250.0,0.00019016,2]
[377814528,1754564523367,-178.0,0.00019021,2]
[377814529,1754564523391,-175.0,0.00019023,7]
[377814530,1754564523415,-555.99,0.00019023,2]
[377814531,1754564523444,-174.18,0.00019023,2]
[377814532,1754564523468,-1200.0,0.00019104,2]
[377814533,1754564523493,-174.94,0.00019105,2]
[377814534,1754564523517,-1200.0,0.00019163,2]
[377814535,1754564523541,-1000.0,0.00019164,2]
[377814536,1754564523564,-168.55,0.00019207,2]
[377814537,1754564523587,-600.0,0.00019286,2]
[377814538,1754564523610,-600.0,0.00019286,2]
[377814539,1754564523634,-599.31,0.00019286,2]
[377814540,1754564523656,-479.65880615,0.00019482,2]
[377814541,1754564523678,-300.0,0.00019588,2]
[377814542,1754564523701,-151.0,0.00019589,2]
[377814543,1754564523724,-1034.0,0.00019601,2]
[377814544,1754564523749,-310.16,0.0001961,2]
[377814545,1754564523772,-6122.35955666,0.0001965,2]
[377814546,1754564523796,-152.08169289,0.0001979,2]
[377814547,1754564523821,-1034.0,0.00019803,2]
[377814548,1754564523843,-300.0,0.00019887,2]
[377814549,1754564523865,-2500.0,0.00019887,2]
[377814550,1754564523888,-2619.6566,0.00019888,2]
[377814551,1754564523912,-1161.27183397,0.00019888,2]
[377814552,1754564550953,500.0,0.00018,2]
[377814553,1754564551617,-214.33833222,0.00019178,2]
[377814554,1754564551640,-277.35679052,0.00019638,2]
[377814555,1754564551663,-200.0,0.00019877,2]
[377814556,1754564551684,-500.0,0.00019877,2]
[377814557,1754564551706,-416.03518578,0.00019877,2]
[377814558,1754564551729,-151.0,0.00019877,2]
[377814559,1754564551751,-160.0,0.00019877,2]
[377814560,1754564551774,-151.0,0.00019877,2]
[377814561,1754564551796,-236.64801387,0.00019877,2]
[377814562,1754564551819,-300.0,0.00019877,2]
[377814563,1754564551841,-300.0,0.00019877,2]
[377814564,1754564551864,-300.0,0.00019877,2]
[377814565,1754564551888,-342.53389956,0.00019877,2]
[377814566,1754564551914,-4849.50772113,0.00019888,2]
[377814567,1754564551936,-164.84004579,0.00019888,2]
[377814568,1754564551957,-5000.0,0.00019889,2]
[377814569,1754564551980,-52230.74001113,0.00019889,2]
[377814571,1754564595348,167.230068,0.00027414,120]
[377814576,1754564695024,224.88,0.00013699,2]
[377814612,1754564900637,175.0,0.00018949,7]
[377814632,1754565006740,601.2,0.00015068,2]
[377814633,1754565006956,601.2,0.00016713,2]
[377814648,1754565031900,-601.2,0.00018358,2]
[377814649,1754565031910,-250.0,0.00018949,2]
[377814650,1754565031919,-166.22,0.00018986,2]
[377814651,1754565031928,-370.24926854,0.00019,2]
[377814652,1754565031937,-150.0,0.000192,2]
[377814653,1754565031947,-600.0,0.0001953,2]
[377814654,1754565031956,-600.0,0.0001953,2]
[377814655,1754565031965,-239.45,0.0001953,2]
[377814656,1754565031974,-600.0,0.000196,7]
[377814657,1754565031984,-861.7,0.00019603,2]
[377814658,1754565031995,-1200.0,0.000197,7]
[377814659,1754565032005,-1200.0,0.00019789,2]
[377814660,1754565032014,-300.0,0.00019799,2]
[377814661,1754565032023,-300.0,0.00019799,2]
[377814662,1754565032033,-1800.0,0.000198,7]
[377814663,1754565032041,-306.67,0.000198,2]
[377814664,1754565032051,-861.7,0.00019804,2]
[377814665,1754565032060,-613.0,0.00019876,2]
[377814666,1754565032070,-98.74189669,0.00019888,2]
[377814667,1754565032081,-498.79470331,0.00019888,2]
[377814668,1754565032090,-47.90906166,0.00019888,2]
[377814670,1754565032120,-339.01560431,0.00019888,2]
[377814671,1754565032132,-4613.07533403,0.00019888,2]
[377814672,1754565032141,-279.88721852,0.00019888,2]
[377814673,1754565032151,-8252.96168887,0.00019889,2]
[377814674,1754565032160,-157.99031747,0.0001989,2]
[377814675,1754565032169,-2400.0,0.000199,7]
[377814676,1754565032179,-1214.0,0.00019939,2]
[377814677,1754565032188,-1214.0,0.00019939,2]
[377814678,1754565032198,-1214.0,0.00019939,2]
[377814679,1754565032207,-952.20145746,0.00019939,2]
[377814680,1754565032217,-277.35679052,0.00019961,2]
[377814681,1754565032227,-352.38208267,0.00019969,2]
[377814682,1754565032236,-500.0,0.00019973,2]
[377814683,1754565032246,-500.0,0.00019973,2]
[377814684,1754565032257,-598.02646376,0.00019973,2]
[377814685,1754565032266,-500.0,0.00019973,2]
[377814686,1754565032276,-500.0,0.00019973,2]
[377814687,1754565032285,-500.0,0.00019973,2]
[377814688,1754565032294,-502.74378217,0.00019973,2]
[377814689,1754565032304,-500.0,0.00019973,2]
[377814690,1754565032313,-499.76046511,0.00019973,2]
[377814691,1754565032322,-500.0,0.00019973,2]
[377814693,1754565032331,-602.60040285,0.00019973,2]
[377814695,1754565032340,-500.0,0.00019973,2]
[377814697,1754565032349,-500.0,0.00019973,2]
[377814699,1754565032359,-500.0,0.00019973,2]
[377814701,1754565032368,-500.0,0.00019973,2]
[377814703,1754565032378,-500.0,0.00019973,2]
[377814705,1754565032387,-253.03530275,0.00019973,2]
[377814707,1754565032396,-308.29112015,0.00019973,2]
[377814709,1754565032405,-500.0,0.00019973,2]
[377814712,1754565032415,-500.0,0.00019973,2]
[377814714,1754565032424,-500.0,0.00019973,2]
[377814716,1754565032433,-500.0,0.00019973,2]
[377814718,1754565032443,-174.18,0.00019974,2]
[377814720,1754565032452,-1434.71,0.00019976,2]
[377814722,1754565032462,-200.0,0.00019977,2]
[377814724,1754565032471,-151.0,0.00019977,2]
[377814726,1754565032481,-160.0,0.00019977,2]
[377814728,1754565032490,-416.03518578,0.00019977,2]
[377814730,1754565032500,-616.65293383,0.00019977,2]
[377814732,1754565032511,-500.0,0.00019977,2]
[377814734,1754565032520,-151.0,0.00019977,2]
[377814737,1754565032529,-500.0,0.00019977,2]
[377814739,1754565032539,-500.0,0.00019977,2]
[377814741,1754565032549,-297.11023119,0.00019977,2]
[377814743,1754565032559,-151.0,0.00019977,2]
[377814744,1754565032568,-151.0,0.00019977,2]
[377814745,1754565032579,-1170.0,0.00019977,2]
[377814746,1754565032588,-892.0,0.00019977,2]
[377814747,1754565032597,-4138.0,0.00019977,2]
[377814748,1754565032607,-6071.0,0.00019977,2]
[377814749,1754565032616,-8229.10043872,0.00019977,2]
[377814751,1754565032680,-464.09513756,0.00019977,2]
[377814752,1754565032716,-478.08099993,0.00019977,2]
[377814753,1754565032728,-1677.4804957,0.00019977,2]
[377814754,1754565033483,-1.32005522,0.00019977,2]
[377814755,1754565033518,-10587.92287287,0.00019977,2]
[377814756,1754565033527,-865.0,0.00019977,2]
[377814757,1754565033536,-354.77094115,0.00019979,2]
[377814758,1754565033547,-754.96150186,0.00019981,2]
[377814759,1754565033558,-588.0,0.00019981,2]
[377814766,1754565037933,-164.84004579,0.00019886,2]
[377814767,1754565037943,-2997.91035464,0.00019981,2]
[377814768,1754565037953,-2004.3814872,0.00019981,2]
[377814769,1754565037963,-322.8530589,0.00019981,2]
[377814770,1754565037973,-3255.8106586,0.00019981,2]
[377814771,1754565037983,-194.9129154,0.00019981,2]
[377814772,1754565037994,-174.11680958,0.00019985,2]
[377814773,1754565038003,-500.0,0.00019985,2]
[377814774,1754565038014,-500.0,0.00019985,2]
[377814775,1754565038024,-335.60649537,0.00019985,2]
[377814776,1754565038034,-1662.26,0.00019985,2]
[377814777,1754565038045,-400.0,0.00019985,2]
[377814778,1754565038055,-400.0,0.00019985,2]
[377814779,1754565038065,-400.0,0.00019985,2]
[377814780,1754565038074,-400.0,0.00019985,2]
[377814781,1754565038083,-1470.57,0.00019985,2]
[377814783,1754565038093,-400.0,0.00019985,2]
[377814785,1754565038102,-400.0,0.00019985,2]
[377814787,1754565038112,-400.0,0.00019985,2]
[377814789,1754565038121,-400.0,0.00019985,2]
[377814791,1754565038131,-2064.73,0.00019985,2]
[377814793,1754565038141,-2417.61,0.00019985,2]
[377814795,1754565038150,-400.0,0.00019985,2]
[377814797,1754565038159,-400.0,0.00019985,2]
[377814799,1754565038168,-1058.37,0.00019985,2]
[377814801,1754565038177,-400.0,0.00019985,2]
[377814803,1754565038187,-150.0,0.00019985,2]
[377814804,1754565038196,-400.0,0.00019985,2]
[377814805,1754565038206,-410.22,0.00019985,2]
[377814806,1754565038216,-3139.8,0.00019985,2]
[377814807,1754565038225,-400.0,0.00019985,2]
[377814808,1754565038234,-2605.57,0.00019985,2]
[377814809,1754565038245,-400.0,0.00019985,2]
[377814810,1754565038254,-400.0,0.00019985,2]
[377814811,1754565038263,-400.0,0.00019985,2]
[377814812,1754565038273,-2179.26,0.00019985,2]
[377814813,1754565038282,-400.0,0.00019985,2]
[377814814,1754565038292,-2847.74,0.00019985,2]
[377814815,1754565038301,-1543.86,0.00019985,2]
[377814816,1754565038311,-400.0,0.00019985,2]
[377814817,1754565038320,-2054.52,0.00019985,2]
[377814818,1754565038332,-695.92,0.00019985,2]
[377814819,1754565038342,-2081.42,0.00019985,2]
[377814820,1754565038352,-3038.51,0.00019985,2]
[377814822,1754565038361,-2112.57,0.00019985,2]
[377814824,1754565038370,-4620.36,0.00019985,2]
[377814826,1754565038379,-1022.77,0.00019985,2]
[377814828,1754565038388,-400.0,0.00019985,2]
[377814830,1754565038397,-400.0,0.00019985,2]
[377814832,1754565038407,-1513.32,0.00019985,2]
[377814834,1754565038416,-400.0,0.00019985,2]
[377814836,1754565038425,-448.200137,0.00019985,2]
[377814838,1754565038434,-401.84148581,0.00019985,2]
[377814840,1754565038443,-400.0,0.00019985,2]
[377814842,1754565038453,-979.97,0.00019985,2]
[377814844,1754565038462,-760.52,0.00019985,2]
[377814846,1754565038471,-3960.8,0.00019985,2]
[377814848,1754565038480,-400.0,0.00019985,2]
[377814849,1754565038490,-1237.59,0.00019985,2]
[377814851,1754565038500,-400.0,0.00019985,2]
[377814853,1754565038512,-864.62,0.00019985,2]
[377814855,1754565038521,-400.0,0.00019985,2]
[377814857,1754565038530,-500.0,0.00019986,2]
[377814859,1754565038539,-500.0,0.00019986,2]
[377814861,1754565038549,-370.37314087,0.00019986,2]
[377814863,1754565038559,-400.0,0.00019986,2]
[377814865,1754565038568,-401.68332594,0.00019986,2]
[377814868,1754565038580,-60.80448919,0.00019986,2]
[377814999,1754565039824,-288.84484083,0.00019986,2]
[377815002,1754565039835,-804.90066998,0.00019986,2]
[377815004,1754565039844,-670.42,0.00019986,2]
[377815006,1754565039854,-400.0,0.00019986,2]
[377815008,1754565039864,-1128.37,0.00019986,2]
[377815010,1754565039874,-400.0,0.00019986,2]
[377815012,1754565039883,-400.0,0.00019986,2]
[377815014,1754565039892,-18.09281002,0.00019986,2]
[377815016,1754565039904,-381.90718998,0.00019986,2]
[377815018,1754565039913,-400.0,0.00019986,2]
[377815020,1754565039922,-400.0,0.00019986,2]
[377815022,1754565039931,-1092.35,0.00019986,2]
[377815024,1754565039941,-400.0,0.00019986,2]
[377815026,1754565039950,-400.0,0.00019986,2]
[377815028,1754565039960,-400.0,0.00019986,2]
[377815030,1754565039969,-400.0,0.00019986,2]
[377815032,1754565039978,-535.19,0.00019986,2]
[377815034,1754565039988,-500.0,0.00019986,2]
[377815036,1754565039998,-330.80281002,0.00019986,2]
[377815039,1754565040025,-225.63718998,0.00019986,2]
[377815041,1754565040034,-400.0,0.00019986,2]
[377815043,1754565040043,-693.59,0.00019986,2]
[377815045,1754565040052,-402.59090899,0.00019986,2]
[377815047,1754565040061,-400.0,0.00019986,2]
[377815049,1754565040071,-400.0,0.00019986,2]
[377815051,1754565040080,-400.0,0.00019986,2]
[377815053,1754565040089,-400.0,0.00019986,2]
[377815055,1754565040098,-400.0,0.00019986,2]
[377815057,1754565040108,-564.95,0.00019986,2]
[377815059,1754565040117,-400.0,0.00019986,2]
[377815061,1754565040127,-588.94,0.00019986,2]
[377815063,1754565040136,-400.0,0.00019986,2]
[377815065,1754565040146,-400.0,0.00019986,2]
[377815067,1754565040156,-400.0,0.00019986,2]
[377815069,1754565040166,-541.86,0.00019986,2]